Cogmind - Beta 13 @@@ ROGUE MODE // 2024.04.21 @ 06:19:06 Player: Peregrine Result: Destroyed by G-67 Veteran with Field Laser Performance ------------- Evolutions (6) 3000 Regions Visited (15) 3000 Robots Destroyed (45) 225 Value Destroyed (2006) 2006 Prototype IDs (5) 100 Alien Tech Used (0) 0 Bonus (3100) 3100 TOTAL SCORE: 11431 Bonus ------- Entered Garrisons 600 Used RIF Installer 1500 Entered DSFs 1000 Cogmind --------- Core Integrity 0/1150 Matter 300/300 Energy 95/100 System Corruption 6% Temperature Cool (14) Movement Hovering (70) Location -4/Upper Caves Parts ------- > --- POWER (2) -------- (None) > --- PROPULSION (7) --- Gyrokinetic Inverter > --- UTILITY (8) ------ (None) > --- WEAPON (2) ------- (None) > --- INVENTORY (5) ---- Advanced Heat Sink Improved Hacking Suite Improved Plasma Cutter Peak State ------------ > --- POWER ------------ Light Nuclear Core Light Antimatter Reactor > --- PROPULSION ------- Heavy Siege Treads Centrium Wheel Centrium Wheel Centrium Wheel Centrium Wheel > --- UTILITY ---------- Scrap Engine Advanced Cryofiber Web High-capacity Storage Unit Core Analyzer Core Analyzer Advanced Hardlight Generator > --- WEAPON ----------- Advanced Datajack Power Sword > --- INVENTORY -------- Gyrokinetic Inverter Improved Antigrav System Improved Signal Interpreter Core Analyzer Recoil Nullifier Improved Hacking Suite Relay Coupler [Brawler] Relay Coupler [Demolisher] Improved Lightning Gun Proton Cannon Proton Cannon Improved Plasma Cutter [Rating: 109] Favorites ----------- Power Backup Power I Engine Backup Power I Power Core Constructs Reactor Light Antimatter Reactor Propulsion Light Treads Treads Light Treads Leg Aluminum Leg Wheel Centrium Wheel Hover Unit Improved Gravmag System Flight Unit Improved Cesium-ion Thruster Utility Small Storage Unit Device Armored Scrap Engine Storage Small Storage Unit Processor Core Analyzer Hackware Hacking Suite Protection Scrap Shield Weapon Autogun Energy Gun Makeshift Laser Energy Cannon Constructs Ballistic Gun Autogun Ballistic Cannon Enhanced Gauss Cannon Launcher Subdweller Shrapnel Launcher Special Weapon Improved Remote Datajack Slashing Weapon Mining Claw Special Melee Weapon Advanced Datajack Build | -11 -10 -10 -9 -7 -7 -7 -7 -6 -6 -5 -5 -5 -5 -4 -4 ------- Run | Yrd Mat Sub Rec Fac Gar Fac Gar Fac DSF Fac Gar Fac DSF Fac Upp Slots Evolved 12 | . . . . 6 . . . 2 . 2 . . . 2 . Power 1 | . . . . 1 . . . . . . . . . . . Propulsion 5 | . . . . 2 . . . 1 . 1 . . . 1 . Utility 6 | . . . . 3 . . . 1 . 1 . . . 1 . Weapon . | . . . . . . . . . . . . . . . . Parts Attached 124 | 2 17 14 3 10 11 6 3 1 5 9 13 1 9 8 12 Power 9 | . 1 2 . 1 1 . . . . . 1 . . . 3 Engine 5 | . 1 2 . 1 1 . . . . . . . . . . Core 3 | . . . . . . . . . . . 1 . . . 2 Reactor 1 | . . . . . . . . . . . . . . . 1 Propulsion 32 | 2 4 2 . 4 1 . . . 4 4 2 . 6 . 3 Treads 4 | . 2 1 . . . . . . . . . . . . 1 Leg . | . . . . . . . . . . . . . . . . Wheel 9 | 2 . 1 . . . . . . . . . . 6 . . Hover 8 | . . . . . . . . . 1 4 2 . . . 1 Flight 11 | . 2 . . 4 1 . . . 3 . . . . . 1 Utility 39 | . 6 1 1 5 5 3 1 1 1 4 5 . 1 3 2 Device 16 | . . . 1 1 5 3 1 1 . 1 1 . . 1 1 Storage 10 | . 3 . . 3 . . . . 1 2 . . 1 . . Processor 7 | . 2 . . 1 . . . . . 1 1 . . 2 . Hackware 5 | . 1 . . . . . . . . . 3 . . . 1 Protection 1 | . . 1 . . . . . . . . . . . . . Artifact . | . . . . . . . . . . . . . . . . Weapon 44 | . 6 9 2 . 4 3 2 . . 1 5 1 2 5 4 Energy Gun 4 | . 1 . . . . . . . . . 1 . . 1 1 Energy Cannon 4 | . . . . . . . . . . . . . 1 2 1 Ballistic Gun 13 | . 4 6 2 . . . . . . . . 1 . . . Ballistic Cannon 4 | . . . . . . . . . . 1 1 . 1 1 . Launcher 4 | . . 2 . . 2 . . . . . . . . . . Special Weapon 1 | . . . . . . . . . . . 1 . . . . Impact Weapon . | . . . . . . . . . . . . . . . . Slashing Weapon 13 | . 1 1 . . 2 3 2 . . . 2 . . . 2 Piercing Weapon . | . . . . . . . . . . . . . . . . Special Melee Weapon 1 | . . . . . . . . . . . . . . 1 . Unidentified Prototypes 2 | . . . . 1 . . . . . . . . . 1 . Parts Lost 52 | . 1 1 . . 6 . . . 9 . 5 . 7 4 19 Power 8 | . . . . . 1 . . . 1 . . . 2 . 4 Propulsion 16 | . . 1 . . 2 . . . 4 . 1 . 1 1 6 Utility 18 | . 1 . . . 2 . . . 3 . 3 . 2 1 6 Weapon 10 | . . . . . 1 . . . 1 . 1 . 2 2 3 Highest Loss Streak 9 | . 1 1 . . 3 . . . 9 . 4 . 4 4 9 To Critical Strikes . | . . . . . . . . . . . . . . . . Average Slot Usage (%) 77 | . 93 96 62 66 66 71 69 60 60 63 61 53 68 64 54 Engine 8 | . 14 14 5 3 5 7 7 6 1 10 8 5 4 . . Treads 10 | . 20 22 14 . . . . . . . . . . . 4 Wheel 4 | . 7 3 . . . . . . . . . . 22 31 8 Hover 2 | . . . . . . . . . . 17 14 11 2 . . Flight 3 | . . . . 25 24 23 23 20 24 . . . . . . Device 6 | . . . 14 12 15 22 23 20 18 9 10 5 5 6 11 Storage 7 | . 14 13 . 7 . . . . 2 7 2 . 3 5 4 Processor 4 | . 4 . . . 7 7 7 6 6 8 9 5 5 10 9 Hackware 5 | . 3 13 . . . . . . . . 2 11 10 . . Energy Cannon 1 | . . . . . 3 7 7 6 5 . . . 1 6 . Ballistic Gun 11 | . 21 20 27 15 . . . . . . . 1 3 . . Slashing Weapon 3 | . 2 6 . . 2 3 . . . . 1 . . . 4 Naked Turns . | . . . . . . . . . . . . . . . . Heaviest Build 73 | 14 16 34 17 23 25 29 21 19 19 59 57 25 61 61 73 Greatest Support 96 | 32 40 40 20 22 24 19 19 19 31 60 40 30 96 96 70 Greatest Overweight (x) 5 | . 1 1 . 3 1 1 1 . 3 . 5 . 1 . 1 Average Overweight (x) . | . . . . . . . . . . . . . . . . Largest Inventory Capacity 20 | 8 8 8 5 10 8 5 5 5 8 20 20 5 20 20 20 Average Capacity 10 | 8 8 7 5 8 5 5 5 5 5 18 11 5 15 20 19 Most Carried 16 | 6 8 8 5 7 7 5 5 5 8 12 14 5 7 16 16 Average Carried 7 | 6 7 7 4 4 4 4 4 4 4 7 7 4 4 8 13 Final Capacity 20 | 8 8 5 5 8 5 5 5 5 8 20 5 5 20 20 5 Final Carried 16 | 6 7 5 5 5 3 5 5 4 8 12 5 4 4 16 3 Scrap Engine Consumption 47 | . . . 11 2 7 . . . 12 2 5 . . 4 4 Constructs Created 6 | . . . . 1 1 . . . . . 2 . . 1 1 Constructs Modified 8 | . . . . 1 1 2 . . . . 4 . . . . Class Distribution -------------------- 85% | Mutant 11% | Sprinter Dominant Class ---------------- Mutant | -10/Materials Mutant | -10/Subcaves Mutant | -9/Recycling Sprinter | -7/Factory Sprinter | -7/Garrison Mutant | -7/Factory Sprinter | -7/Garrison Sprinter | -6/Factory Sprinter | -6/DSF Mutant | -5/Factory Mutant | -5/Garrison Bothacker-Mutant | -5/Factory Mutant | -5/DSF Mutant | -4/Factory Mutant | -4/Upper Caves Resources | -11 -10 -10 -9 -7 -7 -7 -7 -6 -6 -5 -5 -5 -5 -4 -4 ----------- Run | Yrd Mat Sub Rec Fac Gar Fac Gar Fac DSF Fac Gar Fac DSF Fac Upp Matter Collected 2028 | 220 278 256 227 . 61 170 . . . 120 192 272 23 . 209 Remotely . | . . . . . . . . . . . . . . . . Salvage Created 1620 | . 310 206 167 . 131 . . . . . 165 . . 100 541 Parts 88 | . 23 20 12 . 4 . . . . . 4 . . 1 24 Haulers Intercepted 2 | . 1 . . . . . . . . . . . . 1 . Recyclers Shooed . | . . . . . . . . . . . . . . . . Parts Field Recycled 1 | . . . . . . 1 . . . . . . . . . Retrieved Matter 9 | . . . . . . 9 . . . . . . . . . Parts Self-Destructed 28 | . . 10 . . . . . . . . . . . . 18 Prevented . | . . . . . . . . . . . . . . . . Kills | -11 -10 -10 -9 -7 -7 -7 -7 -6 -6 -5 -5 -5 -5 -4 -4 ------- Run | Yrd Mat Sub Rec Fac Gar Fac Gar Fac DSF Fac Gar Fac DSF Fac Upp Combat Hostiles Destroyed 35 | . 3 9 2 . 5 . . . . . 2 . . . 14 Melee 14 | . . . . . . . . . . . . . . . 14 Guns 14 | . 3 9 2 . . . . . . . . . . . . Cannons 2 | . . . . . . . . . . . 2 . . . . AOE 5 | . . . . . 5 . . . . . . . . . . Classes Destroyed 10 | . 5 3 . . 2 . . . . . . . . . . Hauler 2 | . 1 . . . . . . . . . . . . 1 . Recycler 3 | . 2 . 1 . . . . . . . . . . . . Operator 1 | . 1 . . . . . . . . . . . . . . Turret 2 | . . 2 . . . . . . . . . . . . . Watcher 2 | . 2 . . . . . . . . . . . . . . Swarmer 18 | . 3 4 . . 1 . . . . . . . . . 10 Grunt 4 | . . . . . 2 . . . . . . . . . 2 Duelist 2 | . . . . . 1 . . . . . . . . . 1 Sentry 7 | . . 1 2 . 1 . . . . . 2 . . . 1 Subdweller 4 | . . 4 . . . . . . . . . . . . . Best Kill Streak 5 | . 5 4 2 . 5 . . . . . 1 . . 1 5 Combat Bots Only 5 | . 3 4 2 . 5 . . . . . 1 . . . 5 Max Kills in Single Turn 3 | . 1 2 1 . 3 . . . . . 1 . . 1 1 Gunslinging . | . . . . . . . . . . . . . . . . Exploded 3 | . . . . . 3 . . . . . . . . . . Melee 1 | . . . . . . . . . . . . . . . 1 Uniques/NPCs Destroyed . | . . . . . . . . . . . . . . . . Combat | -11 -10 -10 -9 -7 -7 -7 -7 -6 -6 -5 -5 -5 -5 -4 -4 -------- Run | Yrd Mat Sub Rec Fac Gar Fac Gar Fac DSF Fac Gar Fac DSF Fac Upp Hostile Shots Fired 800 | . 25 72 12 . 190 . 44 . 41 4 49 . 77 54 232 Missed 274 | . 7 19 1 . 94 . 25 . 12 3 15 . 17 22 59 Damage Taken 8501 | . 184 727 156 . 1017 . 212 . 623 18 388 . 1576 671 2929 Core 2123 | . 52 173 14 . 284 . 49 . 114 . 62 . 216 102 1057 Absorbed by Shields 532 | . . . . . 59 . . . . . 9 . . . 464 Regen/Repaired (Parts) 517 | . . . . . 27 90 . . . 400 . . . . . Core Remaining (%) 62 | 100 . . 4 . . . 52 . 86 . . . 72 . . Volleys Fired 111 | . 20 36 5 . 14 1 . . 3 . 22 1 5 3 1 Largest 2 | . 2 2 2 . 2 1 . . 1 . 1 1 2 2 2 Hottest 155 | . 46 70 56 . 83 43 . . 43 . 57 7 155 122 125 Shots Fired 175 | . 39 68 10 . 15 1 . . 3 . 22 1 10 4 2 Gun 115 | . 39 64 10 . . . . . . . . . . 1 1 Cannon 45 | . . . . . 9 1 . . 3 . 18 . 10 3 1 Launcher 10 | . . 4 . . 6 . . . . . . . . . . Special 5 | . . . . . . . . . . . 4 1 . . . Kinetic 147 | . 39 66 10 . 6 . . . . . 18 . 5 3 . Thermal 15 | . . . . . 9 . . . . . . . 5 . 1 Explosive 2 | . . 2 . . . . . . . . . . . . . Electromagnetic 6 | . . . . . . 1 . . 3 . . . . 1 1 Robot Hit Streak 24 | . 16 24 17 . 7 . . . 3 . 9 10 6 7 . Robot Miss Streak 6 | . 4 6 . . 1 . . . 2 . 1 . 2 1 2 Penetration Max 1 | . . . . . . . . . . . . . . 1 . Secondary Targets 2 | . . 2 . . . . . . . . . . . . . Max Gunslinging Chain 1 | . . 1 . . . . . . . . . . . . . Shots Hit Robots 149 | . 25 43 9 . 9 . . . 1 . 19 1 7 4 31 Core Hits 68 | . 11 18 4 . 11 . . . 1 . 5 . . 2 16 Critical Kills 1 | . . . . . . . . . . . . . . 1 . Critical Parts Destroyed 1 | . . 1 . . . . . . . . . . . . . Critical Strikes 11 | . . 5 . . . . . . . . 4 . . 1 1 Destroy 6 | . . 5 . . . . . . . . . . . 1 . Blast 2 | . . . . . . . . . . . 2 . . . . Sever 3 | . . . . . . . . . . . 2 . . . 1 Melee Attacks 103 | . . 17 . . 9 7 2 . . . 23 . . 1 44 Impact . | . . . . . . . . . . . . . . . . Slashing 102 | . . 17 . . 9 7 2 . . . 23 . . . 44 Piercing . | . . . . . . . . . . . . . . . . Sneak Attacks . | . . . . . . . . . . . . . . . . Combat Hostiles . | . . . . . . . . . . . . . . . . Follow-up Attacks . | . . . . . . . . . . . . . . . . Damage Inflicted 4517 | . 371 1131 167 . 756 . . . 32 . 580 . 242 101 1137 Guns 1411 | . 368 850 167 . . . . . . . . . . 26 . Cannons 869 | . . . . . 154 . . . 32 . 390 . 234 59 . Explosions 883 | . . 281 . . 602 . . . . . . . . . . Melee 1318 | . . . . . . . . . . . 190 . . . 1128 Ramming 36 | . 3 . . . . . . . . . . . 8 16 9 Kinetic 2762 | . 368 1078 167 . 602 . . . . . 390 . 98 59 . Thermal 290 | . . . . . 154 . . . . . . . 136 . . Explosive 53 | . . 53 . . . . . . . . . . . . . Electromagnetic 58 | . . . . . . . . . 32 . . . . 26 . Impact . | . . . . . . . . . . . . . . . . Slashing 1318 | . . . . . . . . . . . 190 . . . 1128 Piercing . | . . . . . . . . . . . . . . . . Highest Corruption 6 | . . . . . . . . . . . . . . . 6 Average Corruption 5 | . . . . . . . . . . . . . . . 5 Corruption Purged . | . . . . . . . . . . . . . . . . Corruption Blocked . | . . . . . . . . . . . . . . . . Effects 1 | . . . . . . . . . . . . . . . 1 Message Errors 1 | . . . . . . . . . . . . . . . 1 Overload Shots . | . . . . . . . . . . . . . . . . Overflow Damage 105 | . . 22 . . 29 . . . . . . . . . 54 Projectiles . | . . . . . . . . . . . . . . . . Explosions 51 | . . 22 . . 29 . . . . . . . . . . Melee 54 | . . . . . . . . . . . . . . . 54 Knockbacks 2 | . . . . . . . . . . . . . 1 1 . Impact . | . . . . . . . . . . . . . . . . Kinetic 2 | . . . . . . . . . . . . . 1 1 . Secondary . | . . . . . . . . . . . . . . . . Self-Inflicted Damage 77 | . . . . . 61 . . . . . . . 4 8 4 Shots 2 | . . . . . 2 . . . . . . . . . . Rammed 8 | . 1 . . . . . . . . . . . 1 3 3 Targets Rammed 8 | . 1 . . . . . . . . . . . 1 3 3 Kicked . | . . . . . . . . . . . . . . . . Crushed . | . . . . . . . . . . . . . . . . Highest Temperature 57 | . 12 7 51 . 25 . . . . . 57 . 36 9 9 Average Temperature 13 | . 6 4 26 . 11 . . . . . 16 . 22 6 6 Received Heat Transfer 1409 | . . 108 54 . 388 . 42 . 18 . 72 . 321 150 256 Siege Activations . | . . . . . . . . . . . . . . . . Robots Corrupted . | . . . . . . . . . . . . . . . . Combat Hostiles . | . . . . . . . . . . . . . . . . Parts Fried . | . . . . . . . . . . . . . . . . Impact Corruptions . | . . . . . . . . . . . . . . . . Robots Melted . | . . . . . . . . . . . . . . . . Combat Hostiles . | . . . . . . . . . . . . . . . . Parts Melted . | . . . . . . . . . . . . . . . . Heat Transferred 200 | . . . . . . . . . . . . . 200 . . Parts Sabotaged . | . . . . . . . . . . . . . . . . Parts Stolen . | . . . . . . . . . . . . . . . . Parts Stripped . | . . . . . . . . . . . . . . . . Power Chain Reactions . | . . . . . . . . . . . . . . . . Alert | -11 -10 -10 -9 -7 -7 -7 -7 -6 -6 -5 -5 -5 -5 -4 -4 ------- Run | Yrd Mat Sub Rec Fac Gar Fac Gar Fac DSF Fac Gar Fac DSF Fac Upp Peak Influence 487 | . 96 . 224 117 487 275 356 186 130 42 270 120 84 37 . Initial 255 | . . . 158 93 90 255 192 186 130 36 29 120 84 8 . Average 108 | . 16 . 210 95 322 265 223 186 112 41 101 120 57 10 . Maximum Alert Level 2 | . . . 1 . 2 1 1 . . . 1 . . . . Low Security (%) 80 | 100 100 . 15 100 18 . 42 100 100 100 91 100 100 100 . Level 1 17 | . . . 84 . 37 100 57 . . . 8 . . . . Level 2 1 | . . . . . 43 . . . . . . . . . . Level 3 . | . . . . . . . . . . . . . . . . Level 4 . | . . . . . . . . . . . . . . . . Level 5 . | . . . . . . . . . . . . . . . . High Security . | . . . . . . . . . . . . . . . . Max Security . | . . . . . . . . . . . . . . . . Squads Dispatched 4 | . . . . . . . . . 2 1 . . 1 . . Investigation 1 | . . . . . . . . . . 1 . . . . . Extermination . | . . . . . . . . . . . . . . . . Reinforcement 3 | . . . . . . . . . 2 . . . 1 . . Assault . | . . . . . . . . . . . . . . . . Garrison . | . . . . . . . . . . . . . . . . Intercept . | . . . . . . . . . . . . . . . . Searches Triggered . | . . . . . . . . . . . . . . . . Construction Impeded . | . . . . . . . . . . . . . . . . Haulers Reinforced . | . . . . . . . . . . . . . . . . Active Scanning Responses . | . . . . . . . . . . . . . . . . Cargo Convoy Interrupts . | . . . . . . . . . . . . . . . . Stealth | -11 -10 -10 -9 -7 -7 -7 -7 -6 -6 -5 -5 -5 -5 -4 -4 --------- Run | Yrd Mat Sub Rec Fac Gar Fac Gar Fac DSF Fac Gar Fac DSF Fac Upp Distress Signals . | . . . . . . . . . . . . . . . . Communications Jammed . | . . . . . . . . . . . . . . . . Distress Signals . | . . . . . . . . . . . . . . . . Times Spotted 119 | . 6 17 2 . 24 . 10 . 6 5 6 . 5 13 25 Peak Tracking Total 12 | . 3 2 2 . 10 . 9 . 4 7 3 . 5 12 7 Tactical Retreats 22 | . . 4 . . 6 . 2 . 2 . 1 . . 1 6 Traps | -11 -10 -10 -9 -7 -7 -7 -7 -6 -6 -5 -5 -5 -5 -4 -4 ------- Run | Yrd Mat Sub Rec Fac Gar Fac Gar Fac DSF Fac Gar Fac DSF Fac Upp Traps Triggered 9 | . 2 1 . . 1 . 1 . . . 4 . . . . Indirectly . | . . . . . . . . . . . . . . . . Trap Hack Attempts . | . . . . . . . . . . . . . . . . Triggered . | . . . . . . . . . . . . . . . . Disarmed . | . . . . . . . . . . . . . . . . Reprogrammed . | . . . . . . . . . . . . . . . . Reused . | . . . . . . . . . . . . . . . . Traps Extracted . | . . . . . . . . . . . . . . . . Installed . | . . . . . . . . . . . . . . . . Triggered . | . . . . . . . . . . . . . . . . Machines | -11 -10 -10 -9 -7 -7 -7 -7 -6 -6 -5 -5 -5 -5 -4 -4 ---------- Run | Yrd Mat Sub Rec Fac Gar Fac Gar Fac DSF Fac Gar Fac DSF Fac Upp Machines Disabled 9 | . . 4 . . 1 . . . . . 4 . . . . Max in Single Turn 3 | . . 3 . . 1 . . . . . 1 . . . . Garrison Relay 3 | . . . . . 1 . . . . . 2 . . . . Machines Repaired . | . . . . . . . . . . . . . . . . Machines Dismantled . | . . . . . . . . . . . . . . . . Machines Sabotaged . | . . . . . . . . . . . . . . . . Overloaded Fab Kills . | . . . . . . . . . . . . . . . . Hacking | -11 -10 -10 -9 -7 -7 -7 -7 -6 -6 -5 -5 -5 -5 -4 -4 --------- Run | Yrd Mat Sub Rec Fac Gar Fac Gar Fac DSF Fac Gar Fac DSF Fac Upp Machines Accessed 30 | . 6 1 6 2 . 5 1 1 . 2 1 1 . 4 . Terminals 18 | . 5 . 4 1 . 2 1 1 . . 1 1 . 2 . Fabricators 2 | . . . . . . 1 . . . . . . . 1 . Repair Stations 1 | . . . . . . . . . . 1 . . . . . Recycling Units 5 | . 1 . 2 . . 1 . . . . . . . 1 . Scanalyzers . | . . . . . . . . . . . . . . . . Garrison Access 3 | . . . . 1 . 1 . . . 1 . . . . . Total Hacks 66 | . 18 4 13 4 . 13 2 1 . 3 3 1 . 4 . Successful 39 | . 11 4 10 2 . 5 1 1 . 2 . 1 . 2 . Failed 27 | . 7 . 3 2 . 8 1 . . 1 3 . . 2 . Catastrophic 7 | . 2 . . . . 2 . . . 1 1 . . 1 . Database Lockouts . | . . . . . . . . . . . . . . . . Manual 36 | . 17 1 7 3 . 7 . . . . . . . 1 . Terminals 42 | . 17 . 8 3 . 5 2 1 . . 3 1 . 2 . Fabricators 5 | . . . . . . 4 . . . . . . . 1 . Repair Stations 2 | . . . . . . . . . . 2 . . . . . Recycling Units 10 | . 1 . 5 . . 3 . . . . . . . 1 . Scanalyzers . | . . . . . . . . . . . . . . . . Garrison Access 3 | . . . . 1 . 1 . . . 1 . . . . . Terminal Hacks 15 | . 5 4 2 . . . 1 1 . . . 1 . 1 . Record 6 | . 2 4 . . . . . . . . . . . . . Part Schematic 1 | . . . 1 . . . . . . . . . . . . Open DSF 3 | . . . . . . . . 1 . . . 1 . 1 . Emergency Access Points 1 | . . . . . . . 1 . . . . . . . . Unreport Threat 2 | . 2 . . . . . . . . . . . . . . Zone Layout 2 | . 1 . 1 . . . . . . . . . . . . Fabricator Hacks . | . . . . . . . . . . . . . . . . Repair Station Hacks 1 | . . . . . . . . . . 1 . . . . . Refit 1 | . . . . . . . . . . 1 . . . . . Recycling Unit Hacks 5 | . . . 4 . . 1 . . . . . . . . . Report Inventory 2 | . . . 2 . . . . . . . . . . . . Retrieve Components 3 | . . . 2 . . 1 . . . . . . . . . Scanalyzer . | . . . . . . . . . . . . . . . . Garrison Access Hacks 3 | . . . . 1 . 1 . . . 1 . . . . . Unlock Access 3 | . . . . 1 . 1 . . . 1 . . . . . Unauthorized Hacks 14 | . 5 . 4 1 . 3 . . . . . . . 1 . Terminals 11 | . 4 . 4 1 . 1 . . . . . . . 1 . Assimilate 2 | . 2 . . . . . . . . . . . . . . Botnet 9 | . 2 . 4 1 . 1 . . . . . . . 1 . Fabricators 2 | . . . . . . 2 . . . . . . . . . Report 1 | . . . . . . 1 . . . . . . . . . Haulers 1 | . . . . . . 1 . . . . . . . . . Repair Stations . | . . . . . . . . . . . . . . . . Recycling Units 1 | . 1 . . . . . . . . . . . . . . Monitor 1 | . 1 . . . . . . . . . . . . . . Scanalyzers . | . . . . . . . . . . . . . . . . Garrison Access . | . . . . . . . . . . . . . . . . Data Cores Recovered 1 | . 1 . . . . . . . . . . . . . . Used . | . . . . . . . . . . . . . . . . Hacking Detections 20 | . 4 . 3 2 . 4 1 . . 2 1 . . 3 . Full Trace Events 2 | . . . . . . . . . . 1 1 . . . . Feedback Events . | . . . . . . . . . . . . . . . . Feedback Blocked . | . . . . . . . . . . . . . . . . Robot Schematics Acquired . | . . . . . . . . . . . . . . . . Robots Built . | . . . . . . . . . . . . . . . . Authchips . | . . . . . . . . . . . . . . . . Time . | . . . . . . . . . . . . . . . . Total Robot Build Rating . | . . . . . . . . . . . . . . . . Part Schematics Acquired 1 | . . . 1 . . . . . . . . . . . . Parts Built . | . . . . . . . . . . . . . . . . Authchips . | . . . . . . . . . . . . . . . . Time . | . . . . . . . . . . . . . . . . Total Part Build Rating . | . . . . . . . . . . . . . . . . Parts Repaired . | . . . . . . . . . . . . . . . . Time . | . . . . . . . . . . . . . . . . Parts Recycled . | . . . . . . . . . . . . . . . . Recycled Matter . | . . . . . . . . . . . . . . . . Retrieved Matter . | . . . . . . . . . . . . . . . . Retrieved Components 6 | . . . 5 . . 1 . . . . . . . . . Parts Scanalyzed . | . . . . . . . . . . . . . . . . Part Schematics Acquired . | . . . . . . . . . . . . . . . . Parts Damaged . | . . . . . . . . . . . . . . . . Bothacking | -11 -10 -10 -9 -7 -7 -7 -7 -6 -6 -5 -5 -5 -5 -4 -4 ------------ Run | Yrd Mat Sub Rec Fac Gar Fac Gar Fac DSF Fac Gar Fac DSF Fac Upp Used RIF Installer 3 | . . . . . 1 . . . . . 2 . . . . Robot Detection 1 | . . . . . . . . . . . 1 . . . . Watcher Feeds 1 | . . . . . . . . . . . 1 . . . . Robots Hacked 3 | . . . . . . . . . . . 2 1 . . . Non-combat 1 | . . . . . . . . . . . . 1 . . . Combat 2 | . . . . . . . . . . . 2 . . . . Robot Hacks Applied 4 | . . . . . . . . . . . 3 1 . . . deconstruct_machine 1 | . . . . . . . . . . . . 1 . . . find_shortcuts 1 | . . . . . . . . . . . 1 . . . . formatsys_high 2 | . . . . . . . . . . . 2 . . . . Relay Couplers Released 10 | . . . . . 3 . . . . . 7 . . . . Machine Destruction 10 | . . . . . 3 . . . . . 7 . . . . Attached 4 | . . . . . . . . . . . 3 . . . 1 Fabnet Peak Effective % . | . . . . . . . . . . . . . . . . Robots Rewired . | . . . . . . . . . . . . . . . . Allies Hacked . | . . . . . . . . . . . . . . . . Hacks Repelled . | . . . . . . . . . . . . . . . . Allies | -11 -10 -10 -9 -7 -7 -7 -7 -6 -6 -5 -5 -5 -5 -4 -4 -------- Run | Yrd Mat Sub Rec Fac Gar Fac Gar Fac DSF Fac Gar Fac DSF Fac Upp Total Allies 2 | . . . . . . . . . . . 2 . . . . Largest Group 1 | . . . . . . . . . . . 1 . . . . Highest-Rated Group 12 | . . . . . . . . . . . 12 . . . . Highest-Rated Ally 12 | . . . . . . . . . . . 12 . . . . Total Orders . | . . . . . . . . . . . . . . . . Ally Attacks 3 | . . . . . . . . . . . 3 . . . . Total Damage 29 | . . . . . . . . . . . 29 . . . . Kills . | . . . . . . . . . . . . . . . . Allies Corrupted . | . . . . . . . . . . . . . . . . Allies Melted . | . . . . . . . . . . . . . . . . Intel | -11 -10 -10 -9 -7 -7 -7 -7 -6 -6 -5 -5 -5 -5 -4 -4 ------- Run | Yrd Mat Sub Rec Fac Gar Fac Gar Fac DSF Fac Gar Fac DSF Fac Upp Robot Analysis Total . | . . . . . . . . . . . . . . . . Derelict Logs Recovered 1 | . . 1 . . . . . . . . . . . . . Drone Launches . | . . . . . . . . . . . . . . . . Drone Recoveries . | . . . . . . . . . . . . . . . . Exploration | -11 -10 -10 -9 -7 -7 -7 -7 -6 -6 -5 -5 -5 -5 -4 -4 ------------- Run | Yrd Mat Sub Rec Fac Gar Fac Gar Fac DSF Fac Gar Fac DSF Fac Upp Turns Passed 8213 | 5 963 2744 363 183 199 208 223 304 79 199 1172 141 95 478 857 Spaces Moved 5673 | 3 486 1731 214 160 277 437 370 51 106 275 601 146 71 336 409 Core 4 | . . . . . . . . . 4 . . . . . . Treads 2098 | . 288 1211 214 12 . . . . . . . . . . 373 Legs . | . . . . . . . . . . . . . . . . Wheels 1089 | 3 176 520 . . . . . . . . . . 43 336 11 Hover 1075 | . . . . . . . . . . 275 601 146 28 . 25 Flight 1407 | . 22 . . 148 277 437 370 51 102 . . . . . . Fastest Speed 26 | 100 100 110 160 26 26 30 30 30 26 48 52 56 56 90 70 Average Speed 99 | 100 136 145 160 39 29 38 30 30 34 51 56 56 84 90 172 Slowest Speed 310 | 100 160 240 160 275 98 100 100 30 200 56 310 56 115 90 270 Overloaded Moves . | . . . . . . . . . . . . . . . . Propulsion Burnouts . | . . . . . . . . . . . . . . . . Robots Hopped 4 | . . . . . 4 . . . . . . . . . . Cave-ins Triggered . | . . . . . . . . . . . . . . . . Exploration Rate (%) 35 | 2 65 82 41 3 40 9 29 1 89 5 47 3 82 9 53 Regions Visited 15 Branch Regions 3 Pre-discovered Areas 1 | . . 1 . . . . . . . . . . . . . Known Exits Taken 5 | . . . . 1 . 1 . 1 . 1 . 1 . . . Unknown Exits Taken 5 | 1 1 1 1 . . . . . . . . . . 1 . Scrap Searched 3 | . . 2 . . . . . . . . . . . . 1 Spaces Dug 15 | . . . . . 13 . . . . . 2 . . . . Terrain Destroyed 114 | . . 29 . . 81 . . . . . 3 . 1 . . Melee . | . . . . . . . . . . . . . . . . Projectile 4 | . . . . . . . . . . . 3 . 1 . . AOE 110 | . . 29 . . 81 . . . . . . . . . . Terrain Rammed . | . . . . . . . . . . . . . . . . Walls Destroyed . | . . . . . . . . . . . . . . . . Machines Disabled . | . . . . . . . . . . . . . . . . Actions | -11 -10 -10 -9 -7 -7 -7 -7 -6 -6 -5 -5 -5 -5 -4 -4 --------- Run | Yrd Mat Sub Rec Fac Gar Fac Gar Fac DSF Fac Gar Fac DSF Fac Upp Total 7898 | 4 754 1853 226 280 361 465 476 338 143 335 1371 204 94 510 484 Wait 1648 | . 207 31 1 97 34 5 83 287 24 32 648 57 3 134 5 Move 5652 | 2 485 1730 213 160 269 437 367 50 105 275 599 145 70 336 409 Hop 3 | . . . . . 3 . . . . . . . . . . Pick Up 91 | . 10 9 1 9 6 2 . . 6 11 5 . 5 20 7 Fast Attach 23 | . 6 2 1 . 1 3 . . 2 . 5 . 3 . . Attach 65 | . 1 2 . 8 8 3 2 1 3 9 5 1 5 7 10 Detach 22 | . 1 . . 1 5 4 2 . . 4 4 . . 1 . Swap 36 | 2 10 10 2 2 2 . 1 . . . 3 . 1 1 2 Drop 73 | . 13 16 3 3 6 3 . . . 4 16 . 1 5 3 Fire 111 | . 20 36 5 . 14 1 . . 3 . 22 1 5 3 1 Melee 103 | . . 17 . . 9 7 2 . . . 23 . . 1 44 Ram 6 | . . . . . . . . . . . . . 1 2 3 Kick . | . . . . . . . . . . . . . . . . Crush 1 | . 1 . . . . . . . . . . . . . . Escape Stasis 63 | . . . . . 4 . 19 . . . 40 . . . . Rewire 1 | . . . . . . . . . . . 1 . . . . Trap . | . . . . . . . . . . . . . . . . Miscellaneous . | . . . . . . . . . . . . . . . . Route ------- -11/Scrapyard -10/Materials (discovered 3 exits: [*Mat x2] / *Sub) -10/Subcaves (discovered 3 exits: [*Mat x2] / *Rec) -9/Recycling -7/Factory -7/Garrison -7/Factory -7/Garrison -6/Factory -6/DSF -5/Factory -5/Garrison -5/Factory -5/DSF -4/Factory -4/Upper Caves (discovered 1 exit: [*Upp]) History --------- Turn | Location | Event 4 | -11/Scrapyard | Discovered new exit (range 1) 6 | -11/Scrapyard | Entered Materials 265 | -10/Materials | Discovered new exit (range 6) 310 | -10/Materials | Build established: Mutant 506 | -10/Materials | Discovered new exit (range 9) 956 | -10/Materials | Discovered new exit (range 6) 969 | -10/Materials | Entered Subcaves 1043 | -10/Subcaves | Shifting Twisted Machinery released Scrap Shield 1046 | -10/Subcaves | Shifting Twisted Machinery released Flamer 1526 | -10/Subcaves | Visited Clippyterm 1537 | -10/Subcaves | Learned location of Deep Caves (-6) 1669 | -10/Subcaves | Learned Materials trap positions 2029 | -10/Subcaves | Shifting Twisted Machinery released Sub. Machine Gun 2047 | -10/Subcaves | Shifting Twisted Machinery released Sub. Machine Gun 2328 | -10/Subcaves | Discovered new exit (range 5) 2879 | -10/Subcaves | Discovered new exit (range 12) 3231 | -10/Subcaves | Core integrity fell below 50% 3633 | -10/Subcaves | Core integrity fell below 20% 3662 | -10/Subcaves | Discovered new exit (range 11) 3713 | -10/Subcaves | Entered Recycling 3714 | -9/Recycling | Found Scrap Engine 3982 | -9/Recycling | Discovered new exit (range 16) 4076 | -9/Recycling | Entered Factory 4076 | -7/Factory | Evolved 6 slots: Power x1, Propulsion x2, Utility x3 4259 | -7/Factory | Identified exit to Garrison 4259 | -7/Factory | Entered Garrison 4261 | -7/Garrison | Installed Relay Interface Framework 4359 | -7/Garrison | Triggered checkpoint 4423 | -7/Garrison | Discovered new exit (range 10) 4441 | -7/Garrison | Lost 3 parts (1n2u) 4458 | -7/Garrison | Entered Factory 4666 | -7/Factory | Identified exit to Garrison 4666 | -7/Factory | Entered Garrison 4879 | -7/Garrison | Discovered new exit (range 15) 4889 | -7/Garrison | Entered Factory 4889 | -6/Factory | Evolved 2 slots: Propulsion x1, Utility x1 4966 | -6/Factory | Build established: Sprinter 5192 | -6/Factory | Identified exit to DSF 5193 | -6/Factory | Entered DSF 5212 | -6/DSF | Additional patrols routed to DSF 5240 | -6/DSF | Discovered new exit (range 15) 5272 | -6/DSF | Entered Factory 5272 | -5/Factory | Evolved 2 slots: Propulsion x1, Utility x1 5301 | -5/Factory | Lost 9 parts (1p4n3u1w) 5471 | -5/Factory | Identified exit to Garrison 5471 | -5/Factory | Entered Garrison 5552 | -5/Garrison | Build established: Mutant 6060 | -5/Garrison | Spotted B-75 Beast 6109 | -5/Garrison | Triggered checkpoint 6135 | -5/Garrison | Expanded RIF knowledge: Watcher Feeds 6369 | -5/Garrison | Garrison Relay disabled 6546 | -5/Garrison | Triggered checkpoint 6553 | -5/Garrison | Triggered checkpoint 6597 | -5/Garrison | Discovered new exit (range 10) 6610 | -5/Garrison | Expanded RIF knowledge: Robot Detection 6624 | -5/Garrison | Garrison Relay disabled 6643 | -5/Garrison | Entered Factory 6647 | -5/Factory | Identified exit to DSF 6673 | -5/Factory | Lost 4 parts (1n2u1w) 6784 | -5/Factory | Entered DSF 6807 | -5/DSF | Additional patrols routed to DSF 6868 | -5/DSF | Discovered new exit (range 11) 6879 | -5/DSF | Entered Factory 6879 | -4/Factory | Evolved 2 slots: Propulsion x1, Utility x1 6909 | -4/Factory | Lost 4 parts (1p2u1w) 7353 | -4/Factory | Discovered new exit (range 2) 7357 | -4/Factory | Entered Upper Caves 7359 | -4/Upper Caves | Attracted the attention of an 0b10 checkpoint 7390 | -4/Upper Caves | Lost 5 parts (2n1u2w) 7723 | -4/Upper Caves | Lost 5 parts (1p2n1u1w) 8138 | -4/Upper Caves | Attracted the attention of an 0b10 outpost 8190 | -4/Upper Caves | Core integrity fell below 50% 8196 | -4/Upper Caves | Core integrity fell below 20% 8207 | -4/Upper Caves | Discovered new exit (range 7) 8214 | -4/Upper Caves | Destroyed by G-67 Veteran with Field Laser Last Messages --------------- 08186_ Adv. Cryofiber Web destroyed. 08186_ Proton Cannon destroyed. 08187_ Knocked back. 08190_ Slug penetrates B-60 Warrior. 08190_ Slug penetrates Wall. 08192_ Scrap Engine destroyed. 08192_ Dropped Hcp. Storage Unit. 08193_ Core Analyzer destroyed. 08193_ System corrupted by crushing effect (+4). 08193_ Core Analyzer severed. 08193_ Penetrated by Slug. 08193_ Slug penetrates Wall. 08194_ Acquired 10 matter. 08195_ Mak. Flight Unit destroyed. 08195_ Slammed into Y-72 Warden. 08195_ Destabilizing: Core damaged (-57). 08196_ Slammed into Y-72 Warden. 08196_ Destabilizing: System corrupted (+2). 08204_ QN6:=|J5L4 M9BRU3:P/EQGY%,GZZPTZHHO& 08207_ EXIT=FOUND Map ----- +----------------------------------------------------+ | | | | | | | | | | | | | | | | | ?????????????????????????????????????????????????? | | ?????????????????????????????????????????????????? | | ?????????????????????????????????????????????????? | | ?????????????????????????????????????????????????? | | ?????????????????????????????????????????????????? | | ?????????????????????????????????????????????????? | | ?????????????????????????????????????????????????? | | ?????????????????????????????????????????????????? | | ?????????????????????????????????????????????????? | | ????????????????????????##???????????????????????? | | ???????????????????????# ???????????????????????? | | ???????????????????????# ########????????????????? | | ???????????????????????# #"""" $#????????????????? | | ???????????????????????# # #????????????????? | | ?????????????????#####?# # #????????????????? | | #??????####?###### ### ##+# #????????????????# | | #?????## ## ## # #????????????????# | | #?????? # @ #?""#????????????????? | | ??????# ###### #??????????????? | | ?????? #?????# ???????? | | ??????? ##?##### ??????? | | ##?????? ## < #?## #??????? | | ##???????????# ###### ##?# #??????? | | ######?????## ##?????# ##??# #???????? | | ####### #######??##??## #????????? | | ## ### ##"#Yg ### ##??#### ######?#### | | #" ### bl ## #### ### #?# ## | | # ### #?# ## ## ### | | # !### ###### ### ## | | # [!## #???# | | "" =%%% #???# | | ## ]!! #??# ## # | | ![##### #??# ####### ## | | ##???? ##?????## ## ##? | | #????# ####???????## ##### ## #?# | | #????#######????????????# ###???# ## ##?# | | ##???????????????????????####????# #####??# | | ##??????????????????????????????? #?????# | | #??????????????????????????????? ####?????# | | #?????????????????????????????? #????????# | | ?????????????????????????????## #????????# | | ?????????????????????????????# #????????# | +----------------------------------------------------+ Best States ------------- Heat Dissipation 61 Energy Generation 30 Energy Capacity 332 Matter Stores 300 Matter Capacity 300 Sight Range 16 Robot Scan Range 15 Terrain Scan Density 10 Jamming Range 16 Base Temperature (-) 200 Armor Coverage 800 Evasion (%) 76 Targeting Accuracy 14 Core Analysis 9 Recoil Reduction 2 Kinecelleration 40 Offensive Hacking 10 Relay Coupler Types 3 Relay Coupler Value 80 Item Schematics ----------------- Imp. Signal Interpreter | -9/Recycling | Hacked Robot Schematics ------------------ None Fabricated ------------ Nothing Alien Tech Used ----------------- None Achievements -------------- None Challenges ------------ None Game ------ Seed FortressCoilCapacitor Manual? 0 Play Time 01:46:48 Cumulative 82.6 hours Start 2024.04.21 @ 04:11:01 End 2024.04.21 @ 06:19:06 Sessions 1 Manual Loads 0 Difficulty Rogue Special Mode None Game No. 97 Rogue 82 Adventurer 15 Explorer 0 Win Type - Total 1 Types 0/0/1/0/0/0/0/0/0 Lore% 33 Gallery% 60 Achievement% 47 Wizard Run 0 Options --------- Layout 0 ASCII 0 Keyboard 0 Movement Mouse Keybinds 0 Fullscreen 2 Font 36/Smallcaps Map View 76x50 Zoom Use 0% Tactical HUD 1 Map Filters NONE Filters NONE Steam 1 RUN: 50e50b48-e35f-47b3-b5c6-acb3a4ec62d0